bitfinex-derivatives/quotes_SOLF0:USTF0_20250831
["timestamp","ask_amount","ask_price","bid_price","bid_amount"]
[1756642937076,0.02,202.92,202.78,11.79047623]
[1756642937276,26.68,202.87,202.79,7.64]
[1756642938085,26.7,202.87,202.79,7.64]
[1756642939184,0.02,202.86,202.79,7.64]
[1756642943888,336.99002996,202.93,202.79,7.64]
[1756642944187,39.0,202.87,202.79,7.64]
[1756642949185,331.5,202.93,202.79,7.64]
[1756642949792,120.82,202.92,202.79,7.64]
[1756642953187,331.5,202.93,202.79,7.64]
[1756642953492,331.5,202.93,202.83,7.64]
[1756642953691,331.5,202.93,202.82,4.15047623]
[1756642953692,336.89002996,203.05,202.84,11.79047623]
[1756642953894,120.8,203.04,202.85,7.64]
[1756642954093,120.8,203.04,202.86,7.64]
[1756642954987,31.44,203.03,202.86,4.15047623]
[1756642955191,31.44,203.03,202.87,7.64]
[1756642956787,43.18,203.02,202.87,7.64]
[1756642960597,54.18,203.02,202.87,7.64]
[1756642963594,0.85777668,202.99,202.87,7.64]
[1756642965894,54.18,203.02,202.87,7.64]
[1756642966094,55.03771326,203.02,202.87,7.64]
[1756642979420,0.85771326,203.02,202.87,7.64]
[1756642979619,65.76,203.01,202.87,7.64]
[1756642980115,78.44,203.0,202.87,7.64]
[1756642980319,0.85771326,203.02,202.87,7.64]
[1756642980618,90.34,202.99,202.87,7.64]
[1756642984920,90.34,202.99,202.81,7.6]
[1756642985321,95.83002996,202.99,202.81,7.6]
[1756642986222,5.49002996,202.98,202.81,7.6]
[1756642987221,5.49002996,202.97,202.81,7.6]
[1756642990225,5.49002996,202.96,202.81,7.6]
[1756642991033,5.49002996,202.97,202.81,7.6]
[1756642991233,5.49002996,202.96,202.81,7.6]
[1756642991434,5.49002996,202.97,202.81,7.6]
[1756642992037,5.49002996,202.96,202.81,7.6]
[1756642992537,5.49002996,202.95,202.81,7.6]
[1756643001348,5.49002996,202.96,202.81,7.6]
[1756643002150,5.49002996,202.95,202.81,7.6]
[1756643002347,5.49002996,202.96,202.81,7.6]
[1756643003251,5.49002996,202.95,202.81,7.6]
[1756643003446,5.49002996,202.96,202.81,7.6]
[1756643004150,5.49002996,202.95,202.81,7.6]
[1756643006045,5.49002996,202.96,202.81,7.6]
[1756643006251,13.14,202.95,202.81,7.6]
[1756643007148,5.49002996,202.97,202.81,7.6]
[1756643007351,17.34,202.96,202.81,7.6]
[1756643008750,5.49002996,202.97,202.81,7.6]
[1756643009051,34.18,202.96,202.81,7.6]
[1756643009550,50.04,202.95,202.81,7.6]
[1756643009949,62.4,202.94,202.81,7.6]
[1756643012355,76.7,202.93,202.81,7.6]
[1756643018053,76.7,202.93,202.75,8.0]
[1756643018356,5.49002996,202.91,202.75,8.0]
[1756643020956,22.58,202.9,202.75,8.0]
[1756643021257,28.07002996,202.9,202.75,8.0]
[1756643022851,5.49002996,202.9,202.75,8.0]
[1756643023057,8.23504494,202.92,202.75,8.0]
[1756643023058,46.51002996,202.89,202.75,8.0]
[1756643023756,5.49002996,202.88,202.75,8.0]
[1756643025259,54.94,202.87,202.75,8.0]
[1756643026252,61.66,202.86,202.75,8.0]
[1756643032060,67.15002996,202.86,202.75,8.0]
[1756643035464,67.15002996,202.86,202.7,8.0]
[1756643035963,5.49002996,202.85,202.7,8.0]
[1756643039960,5.49002996,202.86,202.7,8.0]
[1756643040369,18.9,202.85,202.7,8.0]
[1756643041370,24.39002996,202.85,202.7,8.0]
[1756643042561,18.9,202.85,202.7,8.0]
[1756643042766,24.39002996,202.85,202.7,8.0]
[1756643044270,18.9,202.85,202.7,8.0]
[1756643044870,5.49002996,202.86,202.7,8.0]
[1756643045163,18.88,202.85,202.7,8.0]
[1756643045568,5.49002996,202.86,202.7,8.0]
[1756643045765,34.86,202.85,202.7,8.0]
[1756643052672,40.35002996,202.85,202.7,8.0]
[1756643054272,5.49002996,202.84,202.7,8.0]
[1756643058076,5.49002996,202.83,202.7,8.0]
[1756643058976,5.49002996,202.82,202.7,8.0]
[1756643060383,5.49002996,202.81,202.7,8.0]
[1756643060579,5.49002996,202.82,202.7,8.0]
[1756643060778,5.49002996,202.81,202.7,8.0]
[1756643062787,5.49002996,202.82,202.7,8.0]
[1756643064094,0.02,202.81,202.7,8.0]
[1756643066992,5.49002996,202.82,202.7,8.0]
[1756643066993,25.2,202.8,202.7,8.0]
[1756643067193,0.02,202.84,202.7,8.0]
[1756643067194,5.51002996,202.84,202.7,8.0]
[1756643067392,18.7,202.83,202.7,8.0]
[1756643070791,24.19002996,202.83,202.7,8.0]
[1756643071091,18.7,202.83,202.7,8.0]
[1756643071291,18.7,202.83,202.7,12.14489688]
[1756643071495,18.7,202.83,202.71,7.83]
[1756643075000,5.51002996,202.87,202.73,4.14489688]
[1756643075299,120.8,202.86,202.74,7.83]
[1756643075798,120.8,202.86,202.74,4.14489688]
[1756643075999,120.8,202.86,202.75,7.83]
[1756643083898,331.42,202.88,202.75,7.83]
[1756643084099,120.76,202.87,202.77,7.37]
[1756643093109,331.42,202.88,202.77,7.37]
[1756643093310,120.74,202.87,202.77,7.37]
[1756643104618,120.74,202.87,202.74,7.37]
[1756643111818,120.74,202.87,202.72,4.13681035]
[1756643112117,120.7,202.86,202.73,7.28]
[1756643112314,120.7,202.86,202.74,7.28]
[1756643112817,120.7,202.86,202.74,4.13681035]
[1756643113018,120.7,202.86,202.75,7.28]
[1756643113223,120.7,202.86,202.76,4.56839026]
[1756643113516,331.42,202.88,202.77,4.56839026]
[1756643113517,120.7,202.85,202.77,4.56839026]
[1756643113722,120.7,202.85,202.78,4.56839026]
[1756643113917,120.7,202.85,202.8,7.28]
[1756643114118,120.7,202.85,202.81,11.84839026]
[1756643114316,120.7,202.85,202.82,4.56839026]
[1756643114520,120.7,202.85,202.83,4.56839026]
[1756643114720,120.7,202.85,202.84,4.56839026]
[1756643119027,120.7,202.85,202.84,4.5745635]
[1756643119222,120.7,202.85,202.77,7.28]
[1756643119423,120.7,202.85,202.74,11.42819714]
[1756643119623,120.7,202.85,202.74,7.28]
[1756643123825,5.49002996,202.86,202.74,7.28]
[1756643124022,120.68,202.85,202.75,4.14819714]
[1756643124222,336.91002996,202.88,202.76,4.64438829]
[1756643124427,120.68,202.87,202.77,11.92438829]
[1756643124625,120.68,202.87,202.78,4.64438829]
[1756643124831,120.68,202.87,202.79,4.64438829]
[1756643125025,120.68,202.87,202.8,4.64438829]
[1756643125224,120.68,202.87,202.81,4.64438829]
[1756643125427,120.68,202.87,202.82,4.64438829]
[1756643125634,126.17002996,202.87,202.83,4.64438829]
[1756643125834,126.17002996,202.87,202.84,4.64438829]
[1756643126035,126.17002996,202.87,202.85,4.64438829]
[1756643126232,126.17002996,202.87,202.86,4.64438829]
[1756643127332,120.68,202.87,202.86,4.64438829]
[1756643129135,121.18,202.87,202.86,4.64438829]
[1756643129335,126.67002996,202.87,202.86,4.64438829]
[1756643129833,126.67002996,202.87,202.76,7.28]
[1756643129834,121.18,202.87,202.76,7.28]
[1756643130034,5.52484073,202.85,202.77,4.59612714]
[1756643130228,5.52484073,202.85,202.76,7.28]
[1756643130229,120.68,202.84,202.78,4.59612714]
[1756643130426,120.68,202.84,202.79,4.59612714]
[1756643130635,126.20484073,202.84,202.8,4.59612714]
[1756643130832,120.68,202.84,202.81,4.59612714]
[1756643131033,120.68,202.84,202.82,4.59612714]
[1756643131234,120.68,202.84,202.76,7.28]
[1756643131436,120.68,202.84,202.72,11.4339219]
[1756643131636,5.52484073,202.83,202.72,7.28]
[1756643132731,5.52484073,202.82,202.72,7.28]
[1756643133031,5.52484073,202.83,202.72,7.28]
[1756643133231,120.68,202.82,202.72,7.28]
[1756643133439,23.18,202.81,202.72,4.1539219]
[1756643133636,23.18,202.81,202.73,7.28]
[1756643133837,5.52484073,202.85,202.73,7.28]
[1756643134035,5.52484073,202.86,202.73,7.28]
[1756643134231,26.24,202.84,202.75,7.28]
[1756643134532,26.24,202.84,202.77,7.28]
[1756643134732,43.12,202.83,202.78,4.59207336]
[1756643135030,43.12,202.83,202.8,7.28]
[1756643135236,43.12,202.83,202.82,7.28]
[1756643135430,43.12,202.83,202.82,11.87207336]
[1756643137338,336.96484073,202.91,202.82,11.87207336]
[1756643137539,120.68,202.9,202.84,7.28]
[1756643137838,120.68,202.9,202.86,7.35]
[1756643138046,120.68,202.9,202.87,4.59207336]
[1756643138237,120.68,202.9,202.89,7.35]
[1756643138432,120.68,202.9,202.89,11.94207336]
[1756643138630,120.68,202.9,202.89,4.59207336]
[1756643140537,120.68,202.9,202.89,4.58507758]
[1756643141338,120.68,202.9,202.86,7.35]
[1756643143233,120.66,202.89,202.79,11.5039219]
[1756643143440,120.66,202.89,202.8,7.35]
[1756643148442,120.66,202.89,202.76,4.1539219]
[1756643148646,5.52484073,202.87,202.7,4.1539219]
[1756643148947,5.52484073,202.83,202.67,7.35]
[1756643149154,44.96484073,202.82,202.67,7.35]
[1756643149542,63.02,202.81,202.67,7.35]
[1756643150244,2.40773779,202.8,202.67,7.35]
[1756643150444,2.40773779,202.79,202.67,7.35]
[1756643150648,2.40773779,202.78,202.67,7.35]
[1756643150851,63.02,202.81,202.67,7.35]
[1756643151041,2.40702462,202.8,202.67,7.35]
[1756643151241,2.40702462,202.79,202.67,7.35]
[1756643151442,2.40702462,202.78,202.67,7.35]
[1756643151642,2.40702462,202.77,202.67,7.35]
[1756643151946,43.96702462,202.76,202.67,7.35]
[1756643152245,2.40702462,202.75,202.67,7.35]
[1756643152435,5.52484073,202.83,202.67,7.35]
[1756643152436,2.40702462,202.74,202.67,7.35]
[1756643152638,45.18702462,202.73,202.67,7.35]
[1756643152845,2.40702462,202.72,202.64,7.35]
[1756643153044,2.40702462,202.71,202.64,7.35]
[1756643153344,43.32,202.75,202.64,4.1539219]
[1756643153543,5.52484073,202.84,202.64,4.1539219]
[1756643153544,2.4,202.79,202.65,7.35]
[1756643153745,41.56,202.78,202.67,11.5039219]
[1756643153943,42.16,202.77,202.68,7.35]
[1756643155752,42.74,202.77,202.68,7.35]
[1756643156953,2.4,202.79,202.68,7.35]
[1756643157147,43.72,202.78,202.68,7.35]
[1756643157648,2.4,202.79,202.68,7.35]
[1756643157843,44.34,202.78,202.68,7.35]
[1756643160447,2.4,202.79,202.68,7.35]
[1756643160750,3.08,202.78,202.69,7.35]
[1756643160946,3.08,202.78,202.7,7.35]
[1756643161945,5.52484073,202.89,202.7,7.35]
[1756643162152,2.42,202.87,202.71,4.1539219]
[1756643162349,27.2,202.86,202.74,7.35]
[1756643163853,2.42,202.85,202.74,7.35]
[1756643164049,27.2,202.86,202.71,7.35]
[1756643164248,2.42,202.89,202.71,7.35]
[1756643164552,50.54,202.88,202.71,7.35]
[1756643164948,2.42,202.87,202.71,7.35]
[1756643165448,2.42,202.85,202.71,7.35]
[1756643165648,2.42,202.83,202.71,7.35]
[1756643165850,2.34431396,202.82,202.71,7.35]
[1756643166150,71.72431396,202.81,202.71,7.35]
[1756643166360,2.34431396,202.8,202.71,7.35]
[1756643166544,2.34431396,202.79,202.71,7.35]
[1756643166745,2.34431396,202.78,202.71,7.35]
[1756643166946,2.34431396,202.77,202.71,7.35]
[1756643167150,2.34431396,202.76,202.69,4.1539219]
[1756643167350,71.8,202.81,202.7,7.35]
[1756643167649,2.42,202.79,202.7,7.35]
[1756643167854,2.34420269,202.78,202.7,7.35]
[1756643168057,2.34420269,202.77,202.7,7.35]
[1756643168249,2.34420269,202.76,202.7,7.35]
[1756643168451,2.34420269,202.75,202.7,7.35]
[1756643168650,2.34420269,202.74,202.7,7.35]
[1756643168954,2.42,202.79,202.7,7.35]
[1756643169155,2.34421402,202.78,202.7,7.35]
[1756643169355,2.34421402,202.77,202.7,7.35]
[1756643169654,2.34421402,202.76,202.71,7.55]
[1756643169856,71.26,202.82,202.72,7.55]
[1756643170056,2.34739809,202.81,202.72,7.55]
[1756643170256,2.34739809,202.8,202.72,7.55]
[1756643170455,2.34739809,202.79,202.72,7.55]
[1756643170657,2.34739809,202.78,202.72,7.55]
[1756643170854,2.34739809,202.77,202.71,7.55]
[1756643171059,2.34735083,202.76,202.71,7.55]
[1756643171252,2.34735083,202.75,202.71,7.55]
[1756643171453,71.26,202.82,202.71,7.55]
[1756643171653,2.34734979,202.81,202.71,7.55]
[1756643171853,2.34734979,202.8,202.71,7.55]
[1756643172054,2.34734979,202.79,202.71,7.55]
[1756643172253,2.34734979,202.78,202.71,7.55]
[1756643172454,2.34734979,202.77,202.71,7.55]
[1756643172754,2.34734979,202.76,202.71,7.55]
[1756643172959,2.34734979,202.75,202.71,7.55]
[1756643173258,71.26,202.82,202.71,7.55]
[1756643173461,2.34736904,202.81,202.71,7.55]
[1756643173656,2.34736904,202.8,202.71,7.55]
[1756643173959,2.34736904,202.79,202.71,7.55]
[1756643174259,2.34736904,202.78,202.71,7.55]
[1756643174458,2.34736904,202.77,202.71,7.55]
[1756643174658,2.34736904,202.76,202.71,7.55]
[1756643174960,71.26,202.82,202.71,7.55]
[1756643175261,2.34798906,202.81,202.71,7.55]
[1756643175460,2.34798906,202.8,202.71,7.55]
[1756643175656,2.34798906,202.79,202.71,7.55]
[1756643175857,2.34798906,202.78,202.71,7.55]
[1756643176057,2.34798906,202.77,202.71,7.55]
[1756643176260,2.34798906,202.76,202.71,7.55]
[1756643176455,71.26,202.82,202.71,7.55]
[1756643176658,2.34862272,202.81,202.71,7.55]
[1756643176956,2.34862272,202.8,202.71,7.55]
[1756643177155,2.34862272,202.79,202.71,7.55]
[1756643177358,2.34862272,202.78,202.71,7.55]
[1756643177555,2.34862272,202.77,202.71,7.55]
[1756643177756,2.34862272,202.76,202.71,7.55]
[1756643177961,71.26,202.82,202.71,7.55]
[1756643178260,2.34929078,202.81,202.71,7.55]
[1756643178460,2.34929078,202.8,202.71,7.55]
[1756643178659,2.34929078,202.79,202.71,7.55]
[1756643178851,2.34929078,202.78,202.71,7.55]
[1756643179055,2.34929078,202.77,202.71,7.55]
[1756643179358,2.34929078,202.76,202.71,7.55]
[1756643179557,2.34929078,202.75,202.71,7.55]
[1756643179757,71.26,202.82,202.71,7.55]
[1756643179963,4.76958138,202.81,202.71,7.55]
[1756643180160,2.34958138,202.8,202.71,7.55]
[1756643180362,2.34958138,202.79,202.71,7.55]
[1756643180653,2.34958138,202.78,202.71,7.55]
[1756643180858,2.34958138,202.77,202.71,7.55]
[1756643181060,2.34958138,202.76,202.71,7.55]
[1756643181259,2.34958138,202.75,202.71,7.55]
[1756643181660,2.42,202.81,202.71,7.55]
[1756643181861,2.34965945,202.8,202.71,7.55]
[1756643182061,2.34965945,202.79,202.73,7.55]
[1756643182262,2.34965945,202.78,202.73,7.55]
[1756643182464,2.34965945,202.77,202.73,7.55]
[1756643182660,2.42,202.84,202.73,7.55]
[1756643182860,2.35007715,202.83,202.73,7.55]
[1756643183063,2.35007715,202.82,202.73,7.55]
[1756643183263,2.35007715,202.81,202.73,7.55]
[1756643183458,2.35007715,202.8,202.73,11.68553986]
[1756643183664,2.35007715,202.79,202.74,7.55]
[1756643183865,2.35007715,202.78,202.73,4.13553986]
[1756643184065,2.35007715,202.77,202.73,4.13553986]
[1756643184361,2.42,202.84,202.74,7.55]
[1756643184570,2.35098211,202.83,202.74,7.55]
[1756643184863,2.4,202.81,202.74,7.55]
[1756643185060,2.35098211,202.8,202.74,7.55]
[1756643185258,2.35098211,202.79,202.73,7.55]
[1756643185455,2.4,202.81,202.73,7.55]
[1756643185456,2.35098211,202.78,202.73,7.55]
[1756643185662,2.35098211,202.77,202.72,4.13553986]
[1756643185860,2.35098211,202.76,202.72,4.13553986]
[1756643186062,2.4,202.81,202.73,7.55]
[1756643186366,2.3506366,202.8,202.73,7.55]
[1756643186567,2.3506366,202.79,202.73,7.55]
[1756643186764,2.3506366,202.78,202.72,4.13553986]
[1756643186971,2.3506366,202.77,202.72,4.13553986]
[1756643187166,2.3506366,202.76,202.71,4.13553986]
[1756643187364,2.3506366,202.75,202.71,4.13553986]
[1756643187565,24.0,202.86,202.71,4.13553986]
[1756643187566,24.0,202.86,202.72,7.55]
[1756643187764,2.4,202.84,202.73,7.55]
[1756643187967,2.35152883,202.83,202.73,7.55]
[1756643188163,4.75152883,202.82,202.73,7.55]
[1756643188368,2.35152883,202.81,202.73,7.55]
[1756643188668,2.35152883,202.8,202.73,7.55]
[1756643188865,2.35152883,202.79,202.73,7.55]
[1756643189069,2.35152883,202.78,202.73,7.55]
[1756643189271,2.35152883,202.77,202.72,4.13553986]
[1756643189471,2.35152883,202.76,202.74,7.55]
[1756643189674,2.35152883,202.75,202.74,7.55]
[1756643192268,2.4,202.79,202.74,7.55]
[1756643192567,2.35329228,202.78,202.72,4.13553986]
[1756643192772,2.35329228,202.77,202.74,11.68553986]
[1756643192970,2.4,202.87,202.75,7.55]
[1756643193174,2.35396534,202.86,202.77,4.14276863]
[1756643193470,2.35396534,202.85,202.78,7.55]
[1756643193672,2.35396534,202.84,202.78,7.55]
[1756643193866,2.35396534,202.83,202.77,4.14276863]
[1756643194074,2.35396534,202.82,202.78,7.55]
[1756643194272,331.46,202.9,202.78,7.55]
[1756643194273,2.35396534,202.81,202.79,4.14276863]
[1756643194472,333.86,202.9,202.8,7.55]
[1756643194673,2.35378452,202.89,202.8,7.55]
[1756643194871,4.75378452,202.88,202.8,7.55]
[1756643195068,2.4,202.86,202.8,7.55]
[1756643195277,2.35378452,202.85,202.8,7.55]
[1756643195471,331.46,202.9,202.8,7.55]
[1756643195472,4.75378452,202.84,202.8,7.55]
[1756643195774,2.35378452,202.83,202.8,7.55]
[1756643195975,2.35378452,202.82,202.76,4.14276863]
[1756643196167,2.35378452,202.81,202.77,7.55]
[1756643196369,2.35378452,202.8,202.77,4.14276863]
[1756643196674,2.35378452,202.79,202.78,7.55]
[1756643202375,2.35378452,202.79,202.75,12.05276863]
[1756643202571,4.75378452,202.78,202.75,12.05276863]
[1756643202774,2.4,202.78,202.75,7.91]
[1756643202982,2.35536904,202.77,202.76,4.54833813]
[1756643203275,25.14,202.85,202.76,4.54833813]
[1756643203480,2.4,202.84,202.77,4.54833813]
[1756643203677,2.4,202.88,202.78,4.54833813]
[1756643203879,2.4,202.83,202.79,4.54833813]
[1756643204180,2.4,202.83,202.8,4.54833813]
[1756643204380,2.4,202.83,202.81,4.54833813]
[1756643204580,2.4,202.83,202.82,2.14833813]
[1756643204783,2.4,202.83,202.73,12.05276863]
[1756643204982,51.28,202.84,202.73,12.05276863]
[1756643205181,51.28,202.84,202.73,7.91]
[1756643205683,51.28,202.84,202.72,62.56503032]
[1756643208484,51.28,202.84,202.69,12.05276863]
[1756643208678,5.52484073,202.83,202.69,7.91]
[1756643208882,5.52484073,202.82,202.66,12.05276863]
[1756643209084,5.52484073,202.81,202.66,7.91]
[1756643210188,5.52484073,202.82,202.66,7.91]
[1756643210486,5.52484073,202.81,202.66,7.91]
[1756643212387,5.52484073,202.82,202.66,7.91]
[1756643212584,5.52484073,202.81,202.66,7.91]
[1756643212785,5.52484073,202.82,202.66,7.91]
[1756643214587,5.52484073,202.81,202.66,7.91]
[1756643215190,5.52484073,202.82,202.66,7.91]
[1756643217082,30.3,202.81,202.66,7.91]
[1756643227997,0.04,202.82,202.66,7.91]
[1756643228297,0.04,202.8,202.66,7.91]
[1756643228697,10.08,202.81,202.66,7.91]
[1756643228897,0.04,202.8,202.66,7.91]
[1756643229291,10.08,202.81,202.66,7.91]
[1756643229489,0.04,202.8,202.66,7.91]
[1756643229888,10.08,202.81,202.66,7.91]
[1756643230087,0.04,202.8,202.66,7.91]
[1756643230294,10.08,202.81,202.66,7.91]
[1756643230489,24.28,202.8,202.66,7.91]
[1756643230694,0.04,202.78,202.66,7.91]
[1756643230897,28.62,202.77,202.66,7.91]
[1756643231298,27.98,202.76,202.66,7.91]
[1756643233202,0.04,202.78,202.66,7.91]
[1756643233403,0.04,202.76,202.66,7.91]
[1756643235404,5.52484073,202.85,202.66,7.91]
[1756643235702,121.74,202.84,202.66,7.91]
[1756643235894,0.04,202.83,202.66,7.91]
[1756643236094,121.74,202.84,202.66,7.91]
[1756643236997,0.04,202.83,202.66,7.91]
[1756643237395,121.74,202.84,202.66,7.91]
[1756643237797,0.04,202.83,202.66,7.91]
[1756643238099,24.52,202.82,202.66,7.91]
[1756643238300,24.42,202.81,202.66,7.91]
[1756643238503,0.04,202.8,202.66,7.91]
[1756643239096,24.42,202.81,202.66,7.91]
[1756643239398,0.04,202.8,202.66,7.91]
[1756643239793,24.42,202.81,202.66,7.91]
[1756643239993,0.04,202.8,202.66,7.91]
[1756643240194,24.42,202.81,202.66,7.91]
[1756643240496,0.04,202.8,202.66,7.91]
[1756643240693,24.42,202.81,202.66,7.91]
[1756643241594,0.04,202.8,202.66,7.91]
[1756643241800,24.42,202.81,202.66,7.91]
[1756643241999,0.04,202.8,202.66,7.91]
[1756643242601,24.42,202.81,202.66,7.91]
[1756643242801,0.04,202.8,202.66,7.91]
[1756643243001,27.72,202.79,202.66,7.91]
[1756643244601,27.08,202.79,202.66,7.91]
[1756643244801,5.52484073,202.85,202.67,7.56]
[1756643245001,18.62,202.84,202.68,4.13555118]
[1756643245303,18.62,202.84,202.69,7.56]
[1756643247202,18.62,202.84,202.69,11.69555118]
[1756643247407,18.62,202.84,202.7,7.56]
[1756643249307,5.52484073,202.82,202.7,7.56]
[1756643249509,5.52484073,202.81,202.66,4.13555118]
[1756643249709,5.52484073,202.81,202.67,7.56]
[1756643250509,26.06,202.8,202.67,11.69555118]
[1756643250708,26.06,202.8,202.68,7.56]
[1756643251700,31.58484073,202.8,202.68,7.56]
[1756643252501,26.06,202.8,202.68,7.56]
[1756643253310,80.78,202.79,202.68,7.56]
[1756643255503,331.54,202.83,202.71,7.56]
[1756643255708,331.54,202.83,202.73,4.13555118]
[1756643255908,331.54,202.83,202.74,11.69555118]
[1756643256212,331.54,202.83,202.76,7.56]
[1756643256413,331.54,202.83,202.77,4.53295706]
[1756643256609,331.54,202.83,202.79,7.56]
[1756643256809,331.54,202.83,202.8,4.53295706]
[1756643257016,331.54,202.83,202.81,4.53295706]
[1756643257207,331.54,202.83,202.82,4.53295706]
[1756643257512,331.54,202.83,202.79,7.56]
[1756643258413,331.54,202.83,202.8,4.78072731]
[1756643258606,331.54,202.83,202.79,7.56]
[1756643258607,331.54,202.83,202.81,4.78072731]
[1756643258803,331.54,202.83,202.82,4.78072731]
[1756643265512,331.54,202.83,202.82,4.57640439]
[1756643265919,453.12,202.83,202.82,4.57640439]
[1756643266311,453.62,202.83,202.82,4.57640439]
[1756643267520,453.62,202.83,202.71,7.67]
[1756643267720,453.12,202.83,202.72,4.57688679]
[1756643267918,453.12,202.83,202.71,7.67]
[1756643267919,453.12,202.83,202.73,4.57688679]
[1756643268216,453.12,202.83,202.71,7.67]
[1756643268217,453.12,202.83,202.74,4.57688679]
[1756643268417,453.12,202.83,202.75,4.57688679]
[1756643268617,453.12,202.83,202.76,4.57688679]
[1756643268818,453.12,202.83,202.77,4.57688679]
[1756643269019,453.12,202.83,202.78,4.57688679]
[1756643269221,453.12,202.83,202.79,4.57688679]
[1756643269519,453.12,202.83,202.8,4.57688679]
[1756643269720,453.12,202.83,202.81,4.57688679]
[1756643270019,453.12,202.83,202.71,7.67]
[1756643270223,453.12,202.83,202.72,4.58629819]
[1756643270418,453.12,202.83,202.73,4.58629819]
[1756643270610,453.12,202.83,202.74,4.58629819]
[1756643270913,453.12,202.83,202.75,4.58629819]
[1756643271110,453.12,202.83,202.76,4.58629819]
[1756643271314,453.12,202.83,202.77,4.58629819]
[1756643271514,453.12,202.83,202.78,4.58629819]
[1756643271711,453.12,202.83,202.79,4.58629819]
[1756643271917,453.12,202.83,202.8,4.58629819]
[1756643272120,453.12,202.83,202.81,4.58629819]
[1756643272419,453.12,202.83,202.71,7.67]
[1756643272622,453.12,202.83,202.72,4.58734736]
[1756643272811,453.12,202.83,202.73,4.58734736]
[1756643273011,453.12,202.83,202.74,4.58734736]
[1756643273211,453.12,202.83,202.75,4.58734736]
[1756643273412,453.12,202.83,202.76,4.58734736]
[1756643273611,453.12,202.83,202.77,4.58734736]
[1756643273812,453.12,202.83,202.78,4.58734736]
[1756643274013,453.12,202.83,202.79,4.58734736]
[1756643274212,453.12,202.83,202.8,4.58734736]
[1756643274423,458.64484073,202.83,202.81,4.58734736]
[1756643274618,458.64484073,202.83,202.71,7.67]
[1756643274818,458.64484073,202.83,202.72,4.58810829]
[1756643275018,458.64484073,202.83,202.73,4.58810829]
[1756643275220,458.64484073,202.83,202.74,4.58810829]
[1756643275419,458.64484073,202.83,202.75,4.58810829]
[1756643275620,458.64484073,202.83,202.76,4.58810829]
[1756643275920,458.64484073,202.83,202.77,4.58810829]
[1756643276120,458.64484073,202.83,202.78,4.5884876]
[1756643276321,458.64484073,202.83,202.79,4.5884876]
[1756643276622,458.64484073,202.83,202.8,4.5884876]
[1756643276920,458.64484073,202.83,202.81,4.5884876]
[1756643277114,458.64484073,202.83,202.71,7.67]
[1756643277115,5.52484073,202.82,202.71,7.67]
[1756643277320,453.12,202.83,202.72,4.58899144]
[1756643277321,126.86484073,202.81,202.72,4.58899144]
[1756643277520,126.86484073,202.81,202.73,4.58899144]
[1756643277722,126.86484073,202.81,202.74,4.58899144]
[1756643277921,126.86484073,202.81,202.75,4.58899144]
[1756643278127,126.86484073,202.81,202.76,4.58899144]
[1756643278327,126.86484073,202.81,202.77,4.58899144]